Cogmind - Beta 14 @@@ ROGUE MODE // 2024.08.27 @ 20:06:05 Player: Bruno Result: Self-destructed Performance ------------- Evolutions (2) 1000 Regions Visited (3) 600 Robots Destroyed (42) 210 Value Destroyed (1172) 1172 Prototype IDs (0) 0 Alien Tech Used (0) 0 Bonus (0) 0 TOTAL SCORE: 2982 Bonus ------- None Cogmind --------- Core Integrity 507/550 Matter 235/300 Energy 430/430 System Corruption 0% Temperature Cool (0) Movement Treading (145) Location -8/Materials Parts ------- > --- POWER (2) -------- Improved Ion Engine Reinforced Ion Engine > --- PROPULSION (2) --- Advanced Treads Advanced Treads > --- UTILITY (5) ------ Cooling System Medium Storage Unit Weight Redist. System Improved Targeting Computer Reactive Plating > --- WEAPON (2) ------- Light Cannon > --- INVENTORY (10) --- Ion Engine Improved Ion Engine Heavy Ion Engine Advanced Treads Advanced Treads High-capacity Matter Pod (200) Shield Generator Light Assault Rifle Peak State ------------ > --- POWER ------------ Improved Ion Engine Reinforced Ion Engine > --- PROPULSION ------- Advanced Treads Advanced Treads > --- UTILITY ---------- Cooling System Medium Storage Unit Weight Redist. System Improved Targeting Computer Reactive Plating > --- WEAPON ----------- Light Cannon Light Cannon > --- INVENTORY -------- Ion Engine Improved Ion Engine Heavy Ion Engine Advanced Treads Advanced Treads High-capacity Matter Pod Shield Generator Light Assault Rifle [Rating: 23] Favorites ----------- Power Improved Ion Engine Engine Improved Ion Engine Propulsion Light Treads Treads Light Treads Leg Aluminum Leg Flight Unit Flight Unit Utility Medium Storage Unit Device Improved Terrain Scanner Storage Medium Storage Unit Processor Improved Targeting Computer Protection Reactive Plating Weapon Light Cannon Energy Gun Backup Laser I Ballistic Gun Light Assault Rifle Ballistic Cannon Light Cannon Build | -11 -10 -9 -8 ------- Run | Yrd Mat Mat Mat Slots Evolved 4 | . . 2 2 Power 1 | . . 1 . Propulsion . | . . . . Utility 3 | . . 1 2 Weapon . | . . . . Parts Attached 40 | 8 17 13 2 Power 15 | 4 5 6 . Engine 15 | 4 5 6 . Core . | . . . . Reactor . | . . . . Propulsion 13 | 2 8 3 . Treads 5 | . 2 3 . Leg 6 | 2 4 . . Wheel . | . . . . Hover . | . . . . Flight 2 | . 2 . . Utility 7 | 1 2 2 2 Device 4 | 1 . 1 2 Storage 1 | . 1 . . Processor 1 | . 1 . . Hackware . | . . . . Protection 1 | . . 1 . Artifact . | . . . . Weapon 5 | 1 2 2 . Energy Gun . | . . . . Energy Cannon . | . . . . Ballistic Gun 1 | 1 . . . Ballistic Cannon 4 | . 2 2 . Launcher . | . . . . Special Weapon . | . . . . Impact Weapon . | . . . . Slashing Weapon . | . . . . Piercing Weapon . | . . . . Special Melee Weapon . | . . . . Unidentified Prototypes . | . . . . Parts Lost 6 | . 3 2 1 Power 1 | . 1 . . Propulsion 1 | . 1 . . Utility 2 | . 1 1 . Weapon 2 | . . 1 1 Highest Loss Streak 2 | . 2 1 1 To Critical Strikes . | . . . . Average Slot Usage (%) 87 | . 80 94 98 Engine 16 | . 13 19 18 Treads 18 | . 15 22 18 Leg 5 | . 10 . . Device 10 | . 11 7 18 Storage 12 | . 13 11 9 Processor 5 | . . 11 9 Protection 2 | . . 2 9 Ballistic Cannon 15 | . 12 18 16 Peak Build Rating 23 | 7 9 20 23 Average Rating 11 | 4 7 14 22 On Entrance 8 | . 7 8 20 Naked Turns . | . . . . Heaviest Build 45 | 7 19 43 45 Greatest Support 50 | 20 40 44 50 Greatest Overweight (x) 1 | . 1 . . Average Overweight (x) . | . . . . Largest Inventory Capacity 10 | 5 10 10 10 Average Capacity 9 | 5 9 10 10 Most Carried 10 | 2 10 10 9 Average Carried 6 | . 6 7 8 Final Capacity 10 | 5 10 10 10 Final Carried 10 | 1 9 10 8 Class Distribution -------------------- 91% | Mutant 8% | Scavenger-Mutant Dominant Class ---------------- Mutant | -10/Materials Mutant | -9/Materials Mutant | -8/Materials Resources | -11 -10 -9 -8 ----------- Run | Yrd Mat Mat Mat Matter Collected 1468 | 287 411 608 162 Remotely . | . . . . Salvage Created 1033 | 64 362 498 109 Parts 71 | 4 26 37 4 Haulers Intercepted . | . . . . Recyclers Shooed 1 | . 1 . . Parts Field Recycled . | . . . . Retrieved Matter . | . . . . Parts Self-Destructed . | . . . . Prevented . | . . . . Kills | -11 -10 -9 -8 ------- Run | Yrd Mat Mat Mat Combat Hostiles Destroyed 35 | 1 11 19 4 Guns 3 | 1 2 . . Cannons 32 | . 9 19 4 Classes Destroyed 10 | 2 4 3 1 Worker 1 | . . 1 . Tunneler 1 | 1 . . . Recycler 1 | . 1 . . Operator 1 | . 1 . . Watcher 3 | . 2 . 1 Swarmer 11 | . 4 7 . Grunt 18 | 1 7 7 3 Brawler 1 | . . 1 . Sentry 4 | . . 4 . Hunter 1 | . . . 1 Best Kill Streak 6 | 2 3 6 3 Combat Bots Only 6 | 1 2 6 3 Max Kills in Single Turn 1 | 1 1 1 1 Gunslinging . | . . . . Exploded . | . . . . Melee . | . . . . Uniques/NPCs Destroyed . | . . . . Combat | -11 -10 -9 -8 -------- Run | Yrd Mat Mat Mat Hostile Shots Fired 239 | 9 76 91 63 Missed 67 | 3 20 19 25 Damage Taken 1659 | 63 536 541 519 Core 266 | 10 112 101 43 Absorbed by Shields 185 | . . 185 . Ignored by Resistances 26 | . . . 26 Regen/Repaired (Parts) 48 | . . 48 . Core Remaining (%) 73 | 96 51 74 . Volleys Fired 159 | 7 70 47 35 Largest 2 | 1 1 2 2 Hottest 70 | 20 35 70 70 Shots Fired 205 | 7 70 75 53 Gun 21 | 7 14 . . Cannon 184 | . 56 75 53 Launcher . | . . . . Special . | . . . . Kinetic 205 | 7 70 75 53 Thermal . | . . . . Explosive . | . . . . Electromagnetic . | . . . . Robot Hit Streak 10 | 3 6 10 4 Robot Miss Streak 6 | 1 6 5 3 Penetration Max . | . . . . Secondary Targets . | . . . . Shots Hit Robots 129 | 5 41 49 34 Core Hits 52 | 3 16 21 12 Critical Kills . | . . . . Critical Parts Destroyed . | . . . . Critical Strikes 7 | . 3 3 1 Blast 7 | . 3 3 1 Melee Attacks . | . . . . Impact . | . . . . Slashing . | . . . . Piercing . | . . . . Sneak Attacks . | . . . . Combat Hostiles . | . . . . Follow-up Attacks . | . . . . Damage Inflicted 2283 | 50 703 914 616 Guns 107 | 50 57 . . Cannons 2176 | . 646 914 616 Explosions . | . . . . Melee . | . . . . Ramming . | . . . . Kinetic 2283 | 50 703 914 616 Thermal . | . . . . Explosive . | . . . . Electromagnetic . | . . . . Impact . | . . . . Slashing . | . . . . Piercing . | . . . . Highest Corruption 1 | . . 1 . Average Corruption 1 | . . 1 . Corruption Purged . | . . . . Corruption Blocked . | . . . . Effects 1 | . . 1 . Matter Fused 1 | . . 1 . Overload Shots . | . . . . Overflow Damage 17 | . . 5 12 Projectiles 17 | . . 5 12 Explosions . | . . . . Melee . | . . . . Knockbacks 17 | . 6 7 4 Impact . | . . . . Kinetic 16 | . 6 6 4 Secondary 1 | . . 1 . Self-Inflicted Damage . | . . . . Shots . | . . . . Rammed . | . . . . Targets Rammed 1 | . 1 . . Kicked 1 | . 1 . . Crushed . | . . . . Highest Temperature 236 | 6 12 236 35 Average Temperature 81 | 6 6 98 16 Received Heat Transfer 598 | 36 156 118 288 Siege Activations . | . . . . Robots Corrupted . | . . . . Combat Hostiles . | . . . . Parts Fried . | . . . . Impact Corruptions . | . . . . Robots Melted . | . . . . Combat Hostiles . | . . . . Parts Melted . | . . . . Heat Transferred . | . . . . Parts Sabotaged . | . . . . Parts Stolen . | . . . . Parts Stripped . | . . . . Power Chain Reactions . | . . . . Alert | -11 -10 -9 -8 ------- Run | Yrd Mat Mat Mat Peak Influence 383 | 25 220 383 237 Initial 94 | . 16 27 94 Average 145 | 9 82 240 153 Maximum Alert Level 1 | . 1 1 1 Low Security (%) 68 | 100 96 23 87 Level 1 31 | . 3 76 12 Level 2 . | . . . . Level 3 . | . . . . Level 4 . | . . . . Level 5 . | . . . . High Security . | . . . . Max Security . | . . . . Squads Dispatched 5 | . 3 1 1 Investigation 2 | . 1 . 1 Extermination . | . . . . Reinforcement 3 | . 2 1 . Assault . | . . . . Garrison . | . . . . Intercept . | . . . . Searches Triggered . | . . . . Construction Impeded . | . . . . Haulers Reinforced . | . . . . Active Scanning Responses . | . . . . Cargo Convoy Interrupts . | . . . . Stealth | -11 -10 -9 -8 --------- Run | Yrd Mat Mat Mat Distress Signals 5 | . 2 3 . Communications Jammed . | . . . . Distress Signals . | . . . . Times Spotted 51 | 1 19 22 9 Peak Tracking Total 6 | 1 4 6 5 Tactical Retreats . | . . . . Traps | -11 -10 -9 -8 ------- Run | Yrd Mat Mat Mat Traps Triggered 1 | . 1 . . Indirectly . | . . . . Trap Hack Attempts . | . . . . Triggered . | . . . . Disarmed . | . . . . Reprogrammed . | . . . . Reused . | . . . . Traps Extracted . | . . . . Installed . | . . . . Triggered . | . . . . Machines | -11 -10 -9 -8 ---------- Run | Yrd Mat Mat Mat Machines Disabled 4 | . 1 2 1 Max in Single Turn 1 | . 1 1 1 Machines Repaired . | . . . . Machines Dismantled . | . . . . Machines Sabotaged . | . . . . Overloaded Fab Kills . | . . . . Hacking | -11 -10 -9 -8 --------- Run | Yrd Mat Mat Mat Machines Accessed 9 | . 4 4 1 Terminals 6 | . 3 2 1 Fabricators . | . . . . Repair Stations 2 | . . 2 . Recycling Units 1 | . 1 . . Scanalyzers . | . . . . Garrison Access . | . . . . Total Hacks 36 | . 14 15 7 Successful 26 | . 9 12 5 Failed 9 | . 5 3 1 Catastrophic . | . . . . Database Lockouts 1 | . . . 1 Manual . | . . . . Terminals 21 | . 10 4 7 Fabricators . | . . . . Repair Stations 11 | . . 11 . Recycling Units 4 | . 4 . . Scanalyzers . | . . . . Garrison Access . | . . . . Terminal Hacks 14 | . 6 3 5 Record 11 | . 5 1 5 Alert Level 1 | . 1 . . Dispatch Records 1 | . . 1 . Maintenance Status 1 | . . 1 . Fabricator Hacks . | . . . . Repair Station Hacks 9 | . . 9 . Scan Component 5 | . . 5 . Repair 3 | . . 3 . Refit 1 | . . 1 . Recycling Unit Hacks 3 | . 3 . . Recycle Component 1 | . 1 . . Process 1 | . 1 . . Report Inventory 1 | . 1 . . Scanalyzer . | . . . . Garrison Access Hacks . | . . . . Unauthorized Hacks . | . . . . Terminals . | . . . . Fabricators . | . . . . Repair Stations . | . . . . Recycling Units . | . . . . Scanalyzers . | . . . . Garrison Access . | . . . . Data Cores Recovered . | . . . . Used . | . . . . Hacking Detections 7 | . 3 3 1 Full Trace Events 3 | . 1 1 1 Feedback Events 1 | . . 1 . Corruption 1 | . . 1 . Feedback Blocked . | . . . . Robot Schematics Acquired . | . . . . Robots Built . | . . . . Authchips . | . . . . Time . | . . . . Total Robot Build Rating . | . . . . Part Schematics Acquired . | . . . . Parts Built . | . . . . Authchips . | . . . . Time . | . . . . Total Part Build Rating . | . . . . Parts Repaired 3 | . . 3 . Time 94 | . . 94 . Parts Recycled 1 | . 1 . . Recycled Matter 57 | . 57 . . Retrieved Matter . | . . . . Retrieved Components . | . . . . Parts Scanalyzed . | . . . . Part Schematics Acquired . | . . . . Parts Damaged . | . . . . Bothacking | -11 -10 -9 -8 ------------ Run | Yrd Mat Mat Mat Used RIF Installer . | . . . . Robots Hacked . | . . . . Non-combat . | . . . . Combat . | . . . . Robot Hacks Applied . | . . . . Relay Couplers Released . | . . . . Fabnet Peak Effective % . | . . . . Robots Rewired . | . . . . Allies Hacked . | . . . . Hacks Repelled . | . . . . Allies | -11 -10 -9 -8 -------- Run | Yrd Mat Mat Mat Total Allies . | . . . . Largest Group . | . . . . Highest-Rated Group . | . . . . Highest-Rated Ally . | . . . . Total Orders . | . . . . Ally Attacks . | . . . . Total Damage . | . . . . Kills . | . . . . Allies Corrupted . | . . . . Allies Melted . | . . . . Intel | -11 -10 -9 -8 ------- Run | Yrd Mat Mat Mat Robot Analysis Total . | . . . . Derelict Logs Recovered . | . . . . Drone Launches . | . . . . Drone Recoveries . | . . . . Exploration | -11 -10 -9 -8 ------------- Run | Yrd Mat Mat Mat Turns Passed 2498 | 123 1186 920 269 Spaces Moved 1202 | 64 603 435 100 Core 22 | 22 . . . Treads 880 | . 345 435 100 Legs 300 | 42 258 . . Wheels . | . . . . Hover . | . . . . Flight . | . . . . Fastest Speed 50 | 50 120 145 145 Average Speed 147 | 95 149 152 145 Slowest Speed 190 | 120 190 160 145 Overloaded Moves . | . . . . Propulsion Burnouts . | . . . . Robots Hopped . | . . . . Cave-ins Triggered . | . . . . Exploration Rate (%) 34 | 8 77 35 16 Regions Visited 3 Branch Regions . Pre-discovered Areas . | . . . . Known Exits Taken . | . . . . Unknown Exits Taken 3 | 1 1 1 . Scrap Searched . | . . . . Spaces Dug . | . . . . Terrain Destroyed . | . . . . Melee . | . . . . Projectile . | . . . . AOE . | . . . . Terrain Rammed . | . . . . Walls Destroyed . | . . . . Machines Disabled . | . . . . Actions | -11 -10 -9 -8 --------- Run | Yrd Mat Mat Mat Total 1733 | 119 825 618 171 Wait 259 | 33 94 98 34 Move 1199 | 63 602 434 100 Hop . | . . . . Pick Up 51 | 7 27 17 . Fast Attach . | . . . . Attach 22 | 5 8 7 2 Detach 1 | . 1 . . Swap 18 | 3 9 6 . Drop 23 | 1 13 9 . Fire 159 | 7 70 47 35 Melee . | . . . . Ram . | . . . . Kick 1 | . 1 . . Crush . | . . . . Escape Stasis . | . . . . Rewire . | . . . . Trap . | . . . . Miscellaneous . | . . . . Route ------- -11/Scrapyard -10/Materials (discovered 5 exits: *Mat x3 / [*Min x2]) -9/Materials (discovered 2 exits: *Mat / [*Min]) -8/Materials History --------- Turn | Location | Event 2 | -11/Scrapyard | Met Revision 17 59 | -11/Scrapyard | Discovered new exit (range 8) 124 | -11/Scrapyard | Entered Materials 306 | -10/Materials | Build established: Mutant 609 | -10/Materials | Discovered new exit (range 8) 742 | -10/Materials | Discovered new exit (range 7) 1041 | -10/Materials | Discovered new exit (range 13) 1044 | -10/Materials | Discovered new exit (range 16) 1265 | -10/Materials | Discovered new exit (range 15) 1310 | -10/Materials | Entered another Materials area 1310 | -9/Materials | Evolved 2 slots: Power x1, Utility x1 1508 | -9/Materials | Discovered new exit (range 11) 1524 | -9/Materials | Repaired Ion Engine 1560 | -9/Materials | Repaired Broken Ion Engine 1849 | -9/Materials | Discovered new exit (range 3) 2136 | -9/Materials | Repaired Imp. Ion Engine 2230 | -9/Materials | Entered another Materials area 2230 | -8/Materials | Evolved 2 slots: Utility x2 2397 | -8/Materials | Central database locked down 2499 | -8/Materials | Self-destructed Last Messages --------------- 02465_ G-47 Trooper destroyed. 02466_ K-01 Serf collects debris. 02469_ K-01 Serf knocked back. 02470_ R-06 Scavenger collects Lgt. Nuclear Core. 02471_ K-01 Serf collects debris. 02474_ R-06 Scavenger collects Imp. Heat Sink. 02475_ K-01 Serf collects debris. 02483_ Critical hit (Burn: +37). 02484_ G-47 Trooper Particle Gun blasted off. 02484_ G-47 Trooper destroyed. 02485_ K-01 Serf collects debris. 02487_ R-06 Scavenger collects Particle Gun. 02489_ K-01 Serf collects debris. 02491_ Acquired 8 matter. 02492_ K-01 Serf collects debris. 02495_ Acquired 36 matter. 02497_ Acquired 2 matter. 02498_ Acquired 49 matter. 02499_ K-01 Serf collects debris. Map ----- +----------------------------------------------------+ | ?????????????????????????????????????????????????? | | ?????????????????????????????????????????????????? | | ?????????????????????????????????????????????????? | | ?????????????????????????????????????????????????? | | ?????????????????????????????????????????????????? | | ?????????????????????????????????????????????????? | | ?????????????????????????????????????????????????? | | ?????????????????????????????????????????????????? | | ?????????????????????????????????????????????????? | | ????????????????????###??????????????????????????? | | ???????????????????? ??????????????????????????? | | ????????????????????* ??????????????????????????? | | ??????????????????? ??????????????????????????? | | ??????????????????? ]]]??????????????????????????? | | ????????????????????]] ??????????????????????????? | | ????????????????????]] ??????????????????????????? | | ???????????????????? ??????#######?????????????? | | ???????????????????? ??????# ??????????????? | | ???????????????????? ??????# !!! ??????????????? | | ????????????????????#+#??????# !!!???????????????? | | ????????????????????#%#??????# !!!???????????????? | | ???????????########?#%#??????? ????????????????? | | ???????????# ?# #??????? ????????????????? | | ???????????# # #########+########## | | ???????????# # | | ???????????# + %% @ #### #??? | | ???????????# # % k % """% #?????????? | | ???????????# ### !]! """ #?????????? | | ???????????# ???# %!]! """ #?????????? | | ???????????# ???# ]]! ! r #?????????? | | ???????????# ????# ########??? | | ???????????######+##### r #??? | | ????????????????# ! ^ #??? | | ????????????????# ^ +??? | | ????????????????# T t #??? | | ????????????????# #???? | | ????????????????# #???? | | ????????????????# ^"""^ """ """ """ !// #???? | | ????????????????# """ """ """ """ !// ##### | | ????????????????# """ """ "" """ !// | | ????????????????# | | ????????????????# | | ????????????????## ###############+### | | ?????????????????# ????????# # | | ?????????????????#?????????# # | | ???????????????????????????# """" # ######### | | ???????????????????????????# """" #####???????? | | ???????????????????????????# """" #???????????? | | ???????????????????????????# #???????????? | | ???????????????????????????# #???????????? | +----------------------------------------------------+ Best States ------------- Heat Dissipation 53 Energy Generation 19 Energy Capacity 430 Matter Stores 300 Matter Capacity 300 Sight Range 16 Terrain Scan Range 16 Terrain Scan Density 10 Additional Mass Support 6 Armor Coverage 150 Resistance: KI 20 Evasion (%) 55 Targeting Accuracy 6 Recoil Reduction 2 Item Schematics ----------------- None Robot Schematics ------------------ None Fabricated ------------ Nothing Alien Tech Used ----------------- None Achievements -------------- Crack Shot Librarian One Hack Too Far Part-time Mechanic Storm Trooper Challenges ------------ None Game ------ Seed LegExpertLance Manual? 0 Play Time 01:03:45 Cumulative 1.0 hours Start 2024.08.27 @ 18:51:53 End 2024.08.27 @ 20:06:05 Sessions 1 Manual Loads 0 Difficulty Rogue Special Mode None Game No. 3 Rogue 3 Adventurer 0 Explorer 0 Win Type - Total 0 Types 0/0/0/0/0/0/0/0/0 Lore% 0 Gallery% 2 Achievement% 2 Wizard Run 0 Options --------- Layout 2 ASCII 0 Keyboard 0 Movement Mouse Keybinds 0 Fullscreen 2 Font 24/X11 Map View 50x44 Zoom Use 0% Tactical HUD 1 Map Filters NONE Filters NONE Steam 1 RUN: 098403bd-eb24-4b6e-ac3b-d3b160287375